bitfinex/quotes_ETHUSD_20250923
["timestamp","ask_amount","ask_price","bid_price","bid_amount"]
[1758619708429,12.55112235,4210.2,4210.1,0.02]
[1758619708600,15.29822235,4210.2,4210.1,0.02]
[1758619710326,16.57763064,4210.2,4210.1,0.02]
[1758619711353,16.57763064,4210.2,4209.1,0.02]
[1758619711354,3.16774836,4209.2,4209.1,0.02]
[1758619711653,8.18278762,4209.2,4209.1,0.02]
[1758619712218,12.92452065,4209.2,4209.1,0.02]
[1758619712448,13.61762065,4209.2,4209.1,0.02]
[1758619712951,16.61098144,4209.2,4209.1,0.02]
[1758619713151,15.34295077,4209.2,4209.1,0.02]
[1758619714565,15.34395077,4209.2,4209.1,0.02]
[1758619717438,2.37618004,4208.5,4208.1,0.02]
[1758619717635,0.63505985,4208.2,4208.1,0.02]
[1758619717840,5.33683214,4208.2,4208.1,0.02]
[1758619718137,7.39183214,4208.2,4208.1,0.1335]
[1758619718744,6.75777229,4208.2,4208.1,0.1335]
[1758619718947,0.72377229,4208.2,4208.1,0.15726369]
[1758619719153,6.75777229,4208.2,4208.1,0.15726369]
[1758619719361,6.75777229,4208.2,4208.1,0.1335]
[1758619719738,4.70277229,4208.2,4208.1,2.50986938]
[1758619719938,6.75777229,4208.2,4208.1,2.50986938]
[1758619720537,0.72377229,4208.2,4208.1,2.50986938]
[1758619720737,0.84217229,4208.2,4208.1,2.50986938]
[1758619720952,6.87617229,4208.2,4208.1,2.50986938]
[1758619721252,4.82117229,4208.2,4208.1,2.50986938]
[1758619721450,6.87617229,4208.2,4208.1,2.50986938]
[1758619722875,0.84217229,4208.2,4208.1,2.50986938]
[1758619723038,2.89717229,4208.2,4208.1,2.53363307]
[1758619723242,6.25302914,4208.2,4208.1,2.50986938]
[1758619723650,0.21902914,4208.2,4208.1,2.50986938]
[1758619723849,6.25302914,4208.2,4208.1,2.50986938]
[1758619724354,0.21902914,4208.2,4208.1,2.50986938]
[1758619724559,5.20802914,4208.2,4208.1,2.50986938]
[1758619725554,5.20802914,4208.2,4208.1,0.02]
[1758619725754,5.71636071,4208.2,4208.1,2.50986938]
[1758619725970,5.71636071,4208.2,4208.1,2.39636938]
[1758619726681,5.71636071,4208.2,4208.1,0.02]
[1758619726872,5.71636071,4208.2,4208.1,2.39636938]
[1758619727274,0.72736071,4208.2,4208.1,2.39636938]
[1758619727486,4.70636071,4208.2,4208.1,2.50986938]
[1758619727692,6.76136071,4208.2,4208.1,2.50986938]
[1758619727993,6.25475029,4208.2,4208.1,2.50986938]
[1758619728199,6.76355066,4208.2,4208.1,2.50986938]
[1758619729386,0.22075029,4208.2,4208.1,2.53363307]
[1758619729693,0.22075029,4208.2,4208.1,2.62826938]
[1758619729694,4.19975029,4208.2,4208.1,2.62826938]
[1758619732682,0.22075029,4208.2,4208.1,2.62826938]
[1758619732864,2.10075029,4208.2,4208.1,2.62826938]
[1758619734000,4.19975029,4208.2,4208.1,2.62826938]
[1758619734573,0.22075029,4208.2,4208.1,2.62826938]
[1758619734773,0.1184,4208.8,4208.7,2.3760306]
[1758619735096,4.31856019,4208.8,4208.7,2.3760306]
[1758619735395,6.37356019,4208.8,4208.7,2.3760306]
[1758619735993,0.33956019,4208.8,4208.7,2.3760306]
[1758619736166,6.37356019,4208.8,4208.7,2.3760306]
[1758619736986,0.33956019,4208.8,4208.7,2.3760306]
[1758619737300,6.034,4208.8,4208.7,2.3760306]
[1758619737796,6.0332,4208.8,4208.7,2.3760306]
[1758619738094,0.001,4209.1,4209.0,2.37586124]
[1758619738284,6.25618433,4209.1,4209.0,2.37586124]
[1758619738600,0.22218433,4209.1,4209.0,2.37586124]
[1758619739068,5.85218433,4209.1,4209.0,2.37586124]
[1758619739599,4.20118433,4209.1,4209.0,2.37586124]
[1758619739771,0.22218433,4209.1,4209.0,2.37586124]
[1758619739972,6.25618433,4209.1,4209.0,2.37586124]
[1758619741416,6.035,4209.1,4209.0,2.37586124]
[1758619742016,0.001,4209.1,4209.0,2.37586124]
[1758619742185,6.035,4209.1,4209.0,2.37586124]
[1758619743120,0.001,4209.1,4209.0,2.37586124]
[1758619743324,6.034,4209.1,4209.0,2.37586124]
[1758619744399,3.979,4209.1,4209.0,2.37586124]
[1758619744616,6.034,4209.1,4209.0,2.39961985]
[1758619744804,3.979,4209.1,4209.0,2.39961985]
[1758619745113,3.979,4209.1,4209.0,2.51311985]
[1758619745438,0.001,4209.1,4209.0,2.39961985]
[1758619745595,0.703,4209.1,4209.0,2.37586124]
[1758619745789,0.703,4209.1,4209.0,2.60776124]
[1758619746652,0.001,4209.1,4209.0,2.48936124]
[1758619746792,0.001,4209.1,4209.0,2.60776124]
[1758619748892,0.001,4209.1,4209.0,2.49426124]
[1758619749124,0.001,4209.1,4209.0,2.63151985]
[1758619750115,0.001,4209.1,4209.0,2.60776124]
[1758619752207,0.001,4209.1,4209.0,5.60776124]
[1758619753814,0.001,4209.1,4209.0,6.39976124]
[1758619754229,0.001,4209.1,4209.0,10.25936124]
[1758619754430,0.001,4209.1,4209.0,10.37776124]
[1758619754740,0.02,4210.9,4209.2,0.792]
[1758619754935,2.075,4210.9,4210.8,2.37484563]
[1758619755135,2.075,4210.9,4210.8,2.39859408]
[1758619755136,2.443,4210.9,4210.8,2.39859408]
[1758619756002,3.997,4210.9,4210.8,2.39859408]
[1758619756600,0.02,4210.9,4210.8,2.39859408]
[1758619756814,0.02,4210.9,4210.8,2.37484563]
[1758619757417,0.02,4210.9,4210.8,2.39859408]
[1758619759043,0.6948,4210.9,4210.8,2.39859408]
[1758619759221,0.4541,4210.9,4210.8,2.39859408]
[1758619759411,0.02,4210.9,4210.8,2.39859408]
[1758619762049,0.02,4210.9,4210.8,2.37484563]
[1758619762817,0.0192,4210.9,4210.8,2.37484563]
[1758619763120,0.0192,4210.9,4210.8,2.39859408]
[1758619763330,0.0192,4210.9,4210.8,2.51209408]
[1758619763933,3.976,4211.3,4211.2,2.37462006]
[1758619764140,3.976,4211.3,4211.2,2.39836626]
[1758619764336,0.13123615,4211.5,4211.4,2.37450728]
[1758619764614,4.10723615,4211.5,4211.4,2.39825235]
[1758619765111,4.4301,4211.9,4211.7,2.37433815]
[1758619765324,3.996,4211.9,4211.8,2.37428177]
[1758619765934,4.6708,4211.9,4211.8,2.37428177]
[1758619767615,4.6708,4211.9,4209.9,0.1135]
[1758619767819,0.1184,4211.7,4211.4,2.37445618]
[1758619768033,0.1184,4211.7,4211.5,2.37442815]
[1758619768034,0.6748,4211.6,4211.5,2.37442815]
[1758619768346,0.6748,4211.6,4210.9,0.1184]
[1758619768652,6.03,4211.5,4211.4,2.37446202]
[1758619768818,6.7048,4211.5,4211.4,2.37446202]
[1758619772781,13.7648,4211.5,4211.4,2.37446202]
[1758619774763,0.02,4211.9,4211.4,2.37446202]
[1758619775015,1.59066391,4215.5,4211.4,2.37446202]
[1758619775016,0.02,4213.9,4212.2,3.792]
[1758619775158,0.6748,4213.8,4212.5,3.0]
[1758619775357,0.6748,4213.7,4212.7,3.0]
[1758619775579,4.7178,4213.6,4212.7,3.0]
[1758619775780,0.6748,4213.5,4212.5,0.71352462]
[1758619775979,0.2407,4213.4,4212.0,0.792]
[1758619776207,0.6748,4213.3,4212.1,7.044]
[1758619776355,3.201,4213.2,4212.9,2.37364885]
[1758619776708,3.6351,4213.2,4212.9,2.37364632]
[1758619776984,0.6748,4213.1,4212.6,2.37382465]
[1758619777208,0.6748,4213.0,4212.6,2.37382465]
[1758619777381,0.6748,4212.9,4212.6,2.37382465]
[1758619777696,4.044,4212.8,4212.7,2.37377453]
[1758619777892,4.7188,4212.8,4212.2,2.37400921]
[1758619778058,4.044,4212.8,4211.8,3.0]
[1758619778394,0.6748,4212.7,4212.3,2.37394638]
[1758619778622,0.6748,4212.6,4212.4,2.37391129]
[1758619779220,0.6748,4212.6,4212.5,2.37388724]
[1758619782193,0.6748,4212.6,4212.3,2.37394544]
[1758619782399,4.044,4212.8,4212.4,2.37391854]
[1758619782733,0.6748,4212.5,4212.4,2.37391854]
[1758619783794,0.6748,4212.5,4211.6,2.37439452]
[1758619784017,4.042,4212.4,4211.6,2.37439452]
[1758619784416,4.042,4212.4,4211.4,2.3744998]
[1758619784417,0.2407,4212.3,4211.4,2.3744998]
[1758619784604,0.6748,4212.2,4212.0,2.3741459]
[1758619785101,0.6748,4212.1,4212.0,2.3741459]
[1758619787450,0.6748,4212.1,4211.9,2.37421764]
[1758619787451,4.038,4212.1,4211.9,2.37421764]
[1758619787762,4.0372,4212.1,4212.0,2.37416904]
[1758619789339,0.1184,4212.4,4212.2,2.37405631]
[1758619789544,0.1184,4212.4,4212.3,2.39773994]
[1758619789770,2.1044,4212.4,4212.3,2.39773994]
[1758619790260,4.1544,4212.4,4212.3,2.39773994]
[1758619793263,4.036,4212.4,4212.3,2.37399995]
[1758619794342,4.4753,4212.4,4212.3,2.37399995]
[1758619794850,4.036,4212.4,4212.3,2.37399995]
[1758619796655,4.036,4212.4,4212.1,0.1184]
[1758619796967,4.036,4212.4,4212.3,2.37399995]
[1758619797139,4.036,4212.4,4212.1,0.1184]
[1758619797553,0.6793,4212.3,4212.2,2.37405631]
[1758619798457,0.4393,4212.3,4212.2,2.37405631]
[1758619798855,4.037,4212.4,4212.3,2.37399995]
[1758619799054,4.7163,4212.4,4212.3,2.37399995]
[1758619799251,4.7163,4212.4,4212.0,0.004]
[1758619799468,0.4393,4212.3,4212.0,2.37812201]
[1758619799668,4.7083,4212.2,4212.0,2.37812201]
[1758619799976,0.6793,4212.1,4212.0,2.37812201]
[1758619800474,0.6793,4212.1,4212.0,0.004]
[1758619801066,0.90043238,4212.1,4212.0,0.004]
[1758619801272,1.39347562,4212.1,4212.0,0.004]
[1758619801894,1.17234324,4212.1,4212.0,2.37816904]
[1758619802069,6.7603,4212.1,4212.0,0.004]
[1758619805254,0.6793,4212.1,4212.0,2.37816904]
[1758619805458,6.7593,4212.1,4212.0,0.004]
[1758619806063,0.1184,4212.2,4212.0,2.37816904]
[1758619806261,4.026,4212.1,4212.0,2.37816904]
[1758619806492,0.001,4212.4,4212.0,0.004]
[1758619806693,4.026,4212.3,4212.2,2.37405631]
[1758619807003,0.001,4212.4,4212.3,2.37399995]
[1758619807166,4.028,4212.4,4212.3,2.37399995]
[1758619809021,4.7073,4212.4,4212.0,0.004]
[1758619809302,0.5577,4212.3,4212.1,2.37406703]
[1758619809482,4.029,4212.2,4212.1,2.37406703]
[1758619809679,4.7083,4212.2,4212.1,2.37406703]
[1758619809986,0.1184,4212.1,4212.0,0.004]
[1758619810191,0.1184,4212.1,4212.0,2.37816904]
[1758619810502,0.7977,4212.1,4212.0,2.37816904]
[1758619812405,0.7977,4212.1,4212.0,0.004]
[1758619812585,1.01847366,4212.1,4212.0,0.004]
[1758619813100,1.01847366,4212.1,4212.0,2.37816904]
[1758619813502,1.01847366,4212.1,4212.0,0.004]
[1758619814069,1.01847366,4212.1,4212.0,2.37816904]
[1758619814694,0.1176,4212.1,4212.0,2.37816904]
[1758619815373,0.7969,4212.1,4212.0,2.37816904]
[1758619816277,0.5569,4212.1,4212.0,2.37816904]
[1758619816837,0.001,4212.4,4212.0,2.37816904]
[1758619817130,2.945,4212.3,4212.0,2.37816042]
[1758619817380,0.6949,4212.2,4212.0,0.004]
[1758619817514,0.6949,4212.2,4212.1,2.37411267]
[1758619818210,2.945,4212.3,4212.2,2.37405631]
[1758619818612,0.1194,4212.4,4212.2,2.37405631]
[1758619818926,0.1194,4212.4,4212.3,2.37399995]
[1758619819122,6.2014,4212.4,4212.3,2.37399995]
[1758619821125,0.1194,4212.4,4212.3,2.37399995]
[1758619821325,4.1454,4212.4,4212.3,2.37399995]
[1758619821820,0.1194,4212.4,4212.3,2.37399995]
[1758619822000,4.1464,4212.4,4212.3,2.39773994]
[1758619822199,4.1464,4212.4,4212.3,2.37399995]
[1758619822601,4.8413,4212.4,4212.3,2.37399995]
[1758619825728,4.1464,4212.4,4212.3,2.37399995]
[1758619826945,4.3935,4212.4,4212.1,2.37411267]
[1758619827092,6.075,4212.3,4212.0,0.004]
[1758619827299,6.075,4212.3,4212.2,2.37405631]
[1758619833060,6.075,4212.3,4212.2,2.39779687]
[1758619833257,6.075,4212.3,4212.2,2.37405631]
[1758619837729,6.0742,4212.3,4212.2,2.37405631]
[1758619841760,2.053,4212.3,4212.2,2.37405631]
[1758619841964,6.066,4212.3,4212.2,2.39779687]
[1758619842782,6.5138,4212.3,4212.2,2.37405631]
[1758619842962,6.7619,4212.3,4212.2,2.37405631]
[1758619846469,6.98393272,4212.3,4212.2,2.37405631]
[1758619849765,6.7619,4212.3,4212.2,2.37405631]
[1758619850668,6.067,4212.3,4212.2,2.37405631]
[1758619851950,0.001,4212.3,4212.2,2.37405631]
[1758619852282,1.12072617,4211.7,4210.1,0.02]
[1758619852452,0.792,4210.8,4210.1,0.02]
[1758619852660,3.63865279,4210.6,4210.1,0.02]
[1758619852903,2.3751358,4210.3,4210.1,0.02]
[1758619853171,7.1969924,4210.2,4210.1,0.02]
[1758619853390,7.87405112,4210.2,4210.1,0.02]
[1758619853544,9.06244095,4210.2,4210.1,0.02]
[1758619854365,8.55124133,4210.2,4210.1,0.02]
[1758619854742,6.17605726,4210.2,4210.1,0.02]
[1758619854938,4.98766743,4210.2,4210.1,0.02]
[1758619855745,6.33986743,4210.2,4210.1,0.02]
[1758619856242,6.118,4210.2,4210.1,2.39524049]
[1758619856448,6.118,4210.2,4210.1,0.02]
[1758619856763,2.054,4210.2,4210.1,2.39524049]
[1758619856942,6.117,4210.2,4210.1,0.02]
[1758619857553,6.117,4210.2,4210.1,2.39524049]
[1758619857746,6.117,4210.2,4210.1,2.63284049]
[1758619857949,6.117,4210.2,4210.1,2.39524049]
[1758619858149,4.063,4210.2,4210.1,2.39524049]
[1758619858365,4.063,4210.2,4210.1,0.02]
[1758619860172,4.063,4210.2,4210.1,2.39524049]
[1758619861058,4.063,4210.2,4210.1,0.02]
[1758619861465,4.063,4210.2,4210.1,2.39524049]
[1758619861673,4.304,4210.2,4210.1,0.02]
[1758619861877,10.83791565,4210.2,4210.1,0.02]
[1758619862492,8.46273158,4210.2,4210.1,0.02]
[1758619862691,7.28237745,4210.2,4210.1,0.02]
[1758619863011,9.33917745,4210.2,4210.1,0.02]
[1758619863206,6.8198,4210.2,4210.1,0.02]
[1758619864391,6.119,4210.2,4210.1,0.02]
[1758619864594,0.02375861,4211.0,4210.5,2.37500449]
[1758619864796,0.04749989,4211.0,4210.3,0.2376]
[1758619865003,0.1184,4210.7,4210.4,0.2376]
[1758619865302,0.1184,4210.7,4210.6,2.37495843]
[1758619865599,0.1184,4210.7,4210.6,2.63630801]
[1758619866008,1.5284,4210.7,4210.6,2.63630801]
[1758619866217,1.5284,4210.7,4210.6,2.61255843]
[1758619867013,1.5284,4210.7,4210.6,2.37495843]
[1758619867872,1.5284,4210.7,4210.4,2.61266617]
[1758619868072,1.5284,4210.7,4210.1,0.02]
[1758619868073,0.7008,4210.6,4210.1,0.02]
[1758619868393,0.7008,4210.6,4210.5,2.37501484]
[1758619868773,0.792,4210.5,4210.1,0.02]
[1758619869110,2.37518407,4210.2,4210.0,0.004]
[1758619869321,2.37518407,4210.2,4208.3,0.2376]
[1758619869322,2.37553311,4209.6,4208.3,0.2376]
[1758619869497,8.52632383,4209.5,4208.6,2.37607643]
[1758619869676,9.20338255,4209.5,4208.6,2.37607643]
[1758619870009,6.8278,4209.5,4208.7,2.37601683]
[1758619870382,9.20338968,4209.5,4208.3,0.2376]
[1758619870583,0.7008,4209.4,4208.1,0.02]
[1758619870806,2.3994332,4209.3,4208.5,2.37614307]
[1758619871293,0.7008,4209.2,4208.4,2.37619807]
[1758619871496,7.14954836,4209.2,4208.4,2.37619807]
[1758619872008,4.99378235,4209.2,4208.6,2.37608697]
[1758619872208,4.99378235,4209.2,4208.3,2.37625123]
[1758619872375,4.99378235,4209.2,4208.5,2.37609187]
[1758619872707,4.99378235,4209.2,4208.4,2.37615359]
[1758619872908,4.99378235,4209.2,4208.1,0.2576]
[1758619873298,5.81434875,4209.2,4208.1,0.2576]
[1758619873498,5.81434875,4209.2,4208.6,2.37607419]
[1758619873794,5.81434875,4209.2,4208.1,2.6339557]
[1758619874110,5.81434875,4209.2,4208.5,2.37610313]
[1758619874304,5.81434875,4209.2,4208.3,2.37624179]
[1758619874680,5.81434875,4209.2,4208.6,2.37608487]
[1758619875490,5.81434875,4209.2,4208.5,2.37614053]
[1758619876505,12.87434875,4209.2,4208.5,2.37614053]
[1758619876924,12.87434875,4209.2,4208.1,0.2576]
[1758619877223,12.87434875,4209.2,4208.4,2.37619468]
[1758619877596,12.87434875,4209.2,4208.6,2.37608476]
[1758619878311,12.87434875,4209.2,4208.7,2.37602597]
[1758619878312,12.40624875,4209.2,4208.7,2.37602597]
[1758619878511,12.84834875,4209.2,4208.7,2.37602597]
[1758619878707,12.84834875,4209.2,4208.7,2.37602822]
[1758619879114,12.02778235,4209.2,4208.8,2.37597323]
[1758619879806,12.02778235,4209.2,4208.9,2.37588798]
[1758619880424,12.02778235,4209.2,4208.7,2.37597785]
[1758619880595,12.0282928,4209.2,4208.7,2.37597785]
[1758619880995,12.0282928,4209.2,4208.5,2.61768975]
[1758619881225,12.0282928,4209.2,4208.4,2.37615123]
[1758619881528,12.53678288,4209.2,4208.4,2.37619053]
[1758619881839,12.53678288,4209.2,4208.5,2.3761012]
[1758619882036,15.53678288,4209.2,4208.5,2.376143]
[1758619882199,15.53678288,4209.2,4208.4,2.37619743]
[1758619882394,17.91253124,4209.2,4208.3,2.37624181]
[1758619882598,20.25898009,4209.2,4208.4,2.37617091]
[1758619882805,20.25898009,4209.2,4208.3,2.3762461]
[1758619883295,20.39898009,4209.2,4208.1,0.02]
[1758619883526,21.19098009,4209.2,4208.2,2.3763093]
[1758619884150,21.19098009,4209.2,4208.1,0.02]
[1758619884151,21.82746609,4209.2,4208.3,2.37623314]
[1758619884354,21.82735334,4209.2,4208.2,2.61786822]
[1758619884516,21.82735334,4209.2,4208.3,2.37624635]
[1758619885050,21.19098009,4209.2,4208.2,0.2416]
[1758619885554,21.19098009,4209.2,4208.2,2.61790287]
[1758619886339,21.19098009,4209.2,4208.1,2.39635706]
[1758619886519,21.19098009,4209.2,4208.1,0.02]
[1758619886964,22.03935513,4209.2,4208.2,0.2416]
[1758619887522,22.03855513,4209.2,4208.2,2.61787146]
[1758619887727,22.03855513,4209.2,4208.3,2.376238]
[1758619887927,21.19018009,4209.2,4208.2,2.61790008]
[1758619888159,21.19018009,4209.2,4208.2,2.37629794]
[1758619888365,21.19018009,4209.2,4208.3,0.2416]
[1758619889958,21.19018009,4209.2,4208.1,0.02]
[1758619890270,21.19018009,4209.2,4208.1,0.2616]
[1758619890442,21.19018009,4209.2,4208.1,2.39631456]
[1758619890966,21.19018009,4209.2,4208.1,0.02]
[1758619891972,21.19018009,4209.2,4208.2,0.2416]
[1758619892172,21.19018009,4209.2,4208.2,2.61790108]
[1758619892379,21.19018009,4209.2,4208.2,0.2416]
[1758619893075,21.19018009,4209.2,4208.1,2.39636198]
[1758619893282,21.19018009,4209.2,4208.1,0.02]
[1758619893777,13.27463173,4209.2,4208.6,2.37606336]
[1758619893990,17.88464397,4209.2,4208.8,0.2416]
[1758619894147,20.26039233,4209.2,4208.8,0.2416]
[1758619894346,17.88464397,4209.2,4208.8,0.2416]
[1758619895360,17.03618288,4209.2,4208.8,0.2416]
[1758619895571,12.98318288,4209.2,4208.6,2.51358311]
[1758619895753,17.03418288,4209.2,4209.1,0.2616]
[1758619895953,17.03418288,4209.2,4209.1,0.02]
[1758619897168,17.03509744,4209.2,4209.1,0.02]
[1758619897377,18.30849264,4209.2,4209.1,0.02]
[1758619898475,17.03509744,4209.2,4209.1,0.02]
[1758619901196,17.03509744,4209.2,4209.1,2.7749048]
[1758619901197,0.86989744,4209.2,4209.1,2.7749048]
[1758619901480,0.36140736,4209.2,4209.1,2.7749048]
[1758619901787,0.36140736,4209.2,4209.1,2.79866284]
[1758619902382,0.36178105,4209.2,4209.1,2.79866284]
[1758619902875,0.63897945,4210.2,4209.9,2.37535333]
[1758619903091,0.5108608,4210.1,4210.0,2.51279691]
[1758619903243,4.051,4210.3,4210.2,2.37518407]
[1758619903439,0.1184,4210.6,4210.5,2.37501484]
[1758619903669,4.56155791,4210.6,4210.5,2.37501484]
[1758619903852,4.56155791,4210.6,4210.5,2.75411484]
[1758619905346,4.051,4210.6,4210.5,2.75411484]
[1758619905543,0.1184,4210.8,4210.7,2.37490203]
[1758619905880,2.305,4210.8,4210.7,2.37490203]
[1758619906801,2.305,4210.8,4210.1,0.1375]
[1758619906802,3.0,4210.7,4209.1,0.1575]
[1758619907001,3.0,4210.7,4209.1,0.02]
[1758619907002,3.0,4210.5,4209.1,0.02]
[1758619907166,4.59984528,4210.4,4209.4,2.37562868]
[1758619907365,4.59984528,4210.4,4209.6,2.37547116]
[1758619907587,4.82644528,4210.4,4209.6,2.37547116]
[1758619907861,4.82644528,4210.4,4209.4,2.37563518]
[1758619907862,3.07643399,4210.3,4209.4,2.37563518]
[1758619908171,0.25034128,4210.2,4209.4,2.37563518]
[1758619908391,4.067,4210.1,4209.4,2.37563518]
[1758619908568,0.02374128,4210.0,4209.4,2.37563518]
[1758619909702,0.02374128,4210.0,4209.4,2.37563548]
[1758619910899,0.02374128,4210.0,4209.3,0.2432]
[1758619910900,0.25034128,4210.0,4209.3,2.37569173]
[1758619911097,0.001,4209.2,4209.1,2.3998048]
[1758619911499,0.001,4209.2,4209.1,2.5373048]
[1758619911663,0.001,4209.2,4209.1,2.7805048]
[1758619912005,0.001,4209.2,4209.1,2.6430048]
[1758619912570,0.0002,4209.2,4209.1,2.6430048]
[1758619912760,0.0002,4209.2,4209.1,2.7805048]
[1758619914066,0.0002,4209.2,4209.1,2.6430048]
[1758619915606,0.0002,4209.2,4209.1,0.024]
[1758619916101,0.0002,4209.2,4209.1,2.3998048]
[1758619916303,0.0002,4209.2,4209.1,2.6430048]
[1758619916502,0.0002,4209.2,4209.1,2.7805048]
[1758619918198,0.0002,4209.2,4209.1,2.6430048]
[1758619918376,0.0002,4209.2,4209.1,2.7805048]
[1758619920400,0.0002,4209.2,4209.1,2.80426284]
[1758619920711,0.0002,4209.2,4209.1,2.7805048]
[1758619920878,0.0002,4209.2,4209.1,0.024]
[1758619921078,0.7015,4209.2,4209.1,0.024]
[1758619921282,0.72524128,4209.2,4209.1,0.024]
[1758619921490,0.7015,4209.2,4209.1,0.024]
[1758619923106,0.7015,4209.2,4209.1,0.024]
[1758619923771,0.92279014,4209.2,4209.1,0.024]
[1758619925810,0.94653142,4209.2,4209.1,0.024]
[1758619926367,0.92279014,4209.2,4209.1,0.024]
[1758619926600,0.94653142,4209.2,4209.1,0.024]
[1758619927970,0.94668212,4209.2,4209.1,0.024]
[1758619932305,0.94693478,4209.2,4209.1,0.024]
[1758619932706,0.94693846,4209.2,4209.1,0.024]
[1758619932874,0.72524128,4209.2,4209.1,0.024]
[1758619933072,0.0002,4209.2,4209.1,0.024]
[1758619933297,0.1186,4209.2,4209.1,2.3998048]
[1758619933501,0.34031698,4209.2,4209.1,2.42356284]
[1758619933816,0.0002,4209.2,4209.1,2.80426284]
[1758619935819,0.0002,4209.2,4209.1,2.3998048]
[1758619937620,4.5829705,4209.6,4209.5,2.37557904]
[1758619937792,4.29345189,4209.6,4209.5,2.37557904]
[1758619938117,4.99645189,4209.6,4209.5,2.37557904]
[1758619940302,4.99645189,4209.6,4209.4,2.37562235]
[1758619940499,0.22205189,4209.5,4209.3,2.37568361]
[1758619940804,0.22205189,4209.4,4209.3,2.37568361]
[1758619946015,0.792,4209.3,4208.1,0.02]
[1758619946217,0.792,4208.8,4208.1,0.02]
[1758619946513,2.37591769,4208.9,4208.1,0.02]
[1758619946514,6.16831291,4208.2,4208.1,0.02]
[1758619946714,9.28629456,4208.2,4208.1,0.02]
[1758619946882,12.36560747,4208.2,4208.1,0.02]
[1758619947285,11.72607873,4208.2,4208.1,0.02]
[1758619947481,13.2002625,4208.2,4208.1,0.02]
[1758619949598,12.4082625,4208.2,4208.1,0.02]
[1758619954128,11.8965882,4208.2,4208.1,0.02]
[1758619954931,9.52027529,4208.2,4208.1,0.02]
[1758619956142,0.22209152,4208.2,4208.1,0.02]
[1758619956442,4.107,4208.2,4208.1,0.02]
[1758619956610,6.162,4208.2,4208.1,0.02]
[1758619956939,6.865,4208.2,4208.1,0.02]
[1758619957338,9.865,4208.2,4208.1,0.02]
[1758619957542,13.44884912,4208.2,4208.1,0.02]
[1758619958730,11.07253621,4208.2,4208.1,0.02]
[1758619959241,10.83393621,4208.2,4208.1,0.02]
[1758619959447,7.32703621,4208.2,4208.1,0.02]
[1758619959617,9.38203621,4208.2,4208.1,0.02]
[1758619959821,9.62063621,4208.2,4208.1,0.02]
[1758619960023,10.08503621,4208.2,4208.1,0.02]
[1758619962521,10.08423621,4208.2,4208.1,0.02]
[1758619964629,9.61983621,4208.2,4208.1,0.02]
[1758619965366,10.08423621,4208.2,4208.1,0.02]
[1758619965568,10.73707823,4208.2,4208.1,0.02]
[1758619966248,10.27267823,4208.2,4208.1,0.02]
[1758619966565,10.71737823,4208.2,4208.1,0.02]
[1758619967673,13.09369114,4208.2,4208.1,0.02]
[1758619968080,10.71737823,4208.2,4208.1,0.02]
[1758619969149,13.09369114,4208.2,4208.1,0.02]
[1758619969332,13.60333786,4208.2,4208.1,0.02]
[1758619970278,0.792,4208.0,4207.1,0.02]
[1758619970446,3.792,4207.8,4207.1,0.02]
[1758619970763,0.63707979,4207.5,4207.1,0.02]
[1758619970970,0.24477749,4207.4,4207.1,0.02]
[1758619971140,6.37303621,4207.3,4207.1,0.02]
[1758619971329,0.24477749,4207.2,4207.1,0.02]
[1758619972871,0.24477749,4207.2,4207.1,2.39693423]
[1758619973067,6.39677749,4207.2,4207.1,2.39693423]
[1758619973274,6.37303621,4207.2,4207.1,0.02]
[1758619973567,6.37303621,4207.2,4207.1,2.39693423]
[1758619973866,0.22103621,4207.2,4207.1,2.39693423]
[1758619974038,6.37103621,4207.2,4207.1,3.10503423]
[1758619974238,6.37141366,4207.2,4207.1,3.10503423]
[1758619974433,2.27741366,4207.2,4207.1,3.10503423]
[1758619974660,6.149,4207.2,4207.1,3.10503423]
[1758619975566,6.37078297,4207.2,4207.1,3.10503423]
[1758619975870,6.149,4207.2,4207.1,3.10503423]
[1758619976168,6.37071977,4207.2,4207.1,3.10503423]
[1758619977378,0.22171977,4207.2,4207.1,3.10503423]
[1758619977576,4.31371977,4207.2,4207.1,3.10503423]
[1758619978891,4.31371977,4207.2,4207.1,2.39693423]
[1758619979249,4.3137598,4207.2,4207.1,2.39693423]
[1758619981165,4.31370929,4207.2,4207.1,2.39693423]
[1758619982960,0.22170929,4207.2,4207.1,3.10503423]
[1758619983164,4.084,4207.2,4207.1,3.22343423]
[1758619984178,4.084,4207.2,4207.1,3.22743423]
[1758619985354,0.1184,4207.8,4207.7,2.37659528]
[1758619985553,4.42116318,4207.8,4207.7,2.37659528]
[1758619985785,4.42116318,4207.8,4207.7,3.08469528]
[1758619986790,4.42116318,4207.8,4207.7,2.60979528]
[1758619987080,4.42116318,4207.8,4207.7,2.37659528]
[1758619987454,4.42036318,4207.8,4207.7,2.37659528]
[1758619987882,4.30276318,4207.8,4207.7,2.37659528]
[1758619988668,4.078,4207.8,4207.6,0.02376651]
[1758619989047,0.001,4208.2,4208.1,2.37636938]
[1758619989294,4.29979909,4208.2,4208.1,2.37636938]
[1758619989709,0.001,4208.2,4208.1,3.08446938]
[1758619989868,4.077,4208.2,4208.1,3.08446938]
[1758619990351,2.056,4208.9,4208.1,0.7081]
[1758619990556,4.077,4209.3,4208.2,3.10817603]
[1758619990780,4.077,4209.3,4208.6,2.37608705]
[1758619990967,4.077,4209.3,4208.6,2.39984792]
[1758619991167,4.077,4209.3,4208.6,3.08418705]
[1758619993091,4.077,4209.3,4208.6,3.10794792]
[1758619993985,4.077,4209.3,4208.6,3.08418705]
[1758619996285,4.077,4209.3,4208.6,7.15518705]
[1758619996905,4.077,4209.3,4208.6,3.08418705]
[1758619997116,4.077,4209.3,4208.6,7.15318705]
[1758619997610,0.02374128,4209.2,4208.6,2.37608705]
[1758619997781,0.2355,4208.7,4208.6,2.37608705]
[1758619998392,0.001,4208.7,4208.6,2.37608705]
[1758619999192,0.001,4208.7,4208.6,3.07658705]
[1758619999501,0.001,4208.7,4208.6,2.49448705]